Workbook

Sheet Trapezoidal Rule
B2: Simpson's Integration Rule
M3: www.numerical-methods.com
B4: This spreadsheet computes the approximation to an integral using the Simpson's integration rule.
M5: source | N5: http://www.numerical-methods.com/integration/Simpson's Integration Rule.xlsm
B6: The integral to be approximated is showm to the right and the function f(x) can be defined using Alt-F11. | M6: guide | N6: http://www.numerical-methods.com/integration/Simpson's Integration Rule.htm
B7: In this example f(x)=EXP(x). The limits a and b on the integral can be set in the yellow cells below.
B8: The number of subdomains n can also be set in yellow below. Note n must be even
B9: Note that the number of function evaluations is 2n+1.
C11: a= | D11: 0 | F11: b= | G11: 1
C13: n= (max=50) | D13: 4 | F13: h= | G13: =(b-a)/n -> 0.25
D16: f(x^*) | E16: weighting | F16: weight*f
B17: i | C17: x_i
B19: 0 | C19: =a -> 0 | D19: =IF(B19<>"",f(C19),"") -> 1 | E19: 1 | F19: =IF(D19="","",E19*D19) -> 1
B20: 1 | C20: =IF(B20<>"",C19+hh/2,"") -> 0.125 | D20: =IF(B20<>"",f(C20),"") -> 1.133148453 | E20: =IF(B20="","",4) -> 4 | F20: 4.532593812 | G20: Integral using Simpson's rule = | J20: =hh*SUM(F19:F121)/6 -> 1.718284155
B21: =IF(B20<(2*n), B20+1,"") -> 2 | C21: =IF(B21<>"",C20+hh/2,"") -> 0.25 | D21: =IF(B21<>"",f(C21),"") -> 1.284025417 | E21: =IF(B22="",IF(B21="","",1),2) -> 2 | F21: 2.568050833
B22: =IF(B21<(2*n), B21+1,"") -> 3 | C22: =IF(B22<>"",C21+hh/2,"") -> 0.375 | D22: 1.454991415 | E22: =IF(B22="","",4) -> 4 | F22: 5.819965658
B23: =IF(B22<(2*n), B22+1,"") -> 4 | C23: =IF(B23<>"",C22+hh/2,"") -> 0.5 | D23: 1.648721271 | E23: =IF(B24="",IF(B23="","",1),2) -> 2 | F23: 3.297442541
B24: =IF(B23<(2*n), B23+1,"") -> 5 | C24: =IF(B24<>"",C23+hh/2,"") -> 0.625 | D24: 1.868245957 | E24: =IF(B24="","",4) -> 4 | F24: =IF(D24="","",E24*D24) -> 7.47298383
B25: =IF(B24<(2*n), B24+1,"") -> 6 | C25: =IF(B25<>"",C24+hh/2,"") -> 0.75 | D25: 2.117000017 | E25: =IF(B26="",IF(B25="","",1),2) -> 2 | F25: =IF(D25="","",E25*D25) -> 4.234000033
B26: =IF(B25<(2*n), B25+1,"") -> 7 | C26: =IF(B26<>"",C25+hh/2,"") -> 0.875 | D26: 2.398875294 | E26: =IF(B26="","",4) -> 4 | F26: 9.595501176
B27: =IF(B26<(2*n), B26+1,"") -> 8 | C27: =IF(B27<>"",C26+hh/2,"") -> 1 | D27: 2.718281828 | E27: =IF(B28="",IF(B27="","",1),2) -> 1 | F27: 2.718281828
B28: =IF(B27<(2*n), B27+1,"") ->  | C28: =IF(B28<>"",C27+hh/2,"") ->  | E28: =IF(B28="","",4) -> 
B29: =IF(B28<(2*n), B28+1,"") ->  | C29: =IF(B29<>"",C28+hh/2,"") ->  | E29: =IF(B30="",IF(B29="","",1),2) -> 
B30: =IF(B29<(2*n), B29+1,"") ->  | C30: =IF(B30<>"",C29+hh/2,"") ->  | E30: =IF(B30="","",4) -> 
B31: =IF(B30<(2*n), B30+1,"") ->  | C31: =IF(B31<>"",C30+hh/2,"") ->  | E31: =IF(B32="",IF(B31="","",1),2) -> 
B32: =IF(B31<(2*n), B31+1,"") ->  | C32: =IF(B32<>"",C31+hh/2,"") ->  | E32: =IF(B32="","",4) -> 
B33: =IF(B32<(2*n), B32+1,"") ->  | C33: =IF(B33<>"",C32+hh/2,"") ->  | E33: =IF(B34="",IF(B33="","",1),2) -> 
B34: =IF(B33<(2*n), B33+1,"") ->  | C34: =IF(B34<>"",C33+hh/2,"") ->  | E34: =IF(B34="","",4) -> 
B35: =IF(B34<(2*n), B34+1,"") ->  | C35: =IF(B35<>"",C34+hh/2,"") ->  | E35: =IF(B36="",IF(B35="","",1),2) -> 
B36: =IF(B35<(2*n), B35+1,"") ->  | C36: =IF(B36<>"",C35+hh/2,"") ->  | E36: =IF(B36="","",4) -> 
B37: =IF(B36<(2*n), B36+1,"") ->  | C37: =IF(B37<>"",C36+hh/2,"") ->  | E37: =IF(B38="",IF(B37="","",1),2) -> 
B38: =IF(B37<(2*n), B37+1,"") ->  | C38: =IF(B38<>"",C37+hh/2,"") ->  | E38: =IF(B38="","",4) -> 
B39: =IF(B38<(2*n), B38+1,"") ->  | C39: =IF(B39<>"",C38+hh/2,"") ->  | E39: =IF(B40="",IF(B39="","",1),2) -> 
B40: =IF(B39<(2*n), B39+1,"") ->  | C40: =IF(B40<>"",C39+hh/2,"") ->  | E40: =IF(B40="","",4) -> 
B41: =IF(B40<(2*n), B40+1,"") ->  | C41: =IF(B41<>"",C40+hh/2,"") ->  | E41: =IF(B42="",IF(B41="","",1),2) -> 
B42: =IF(B41<(2*n), B41+1,"") ->  | C42: =IF(B42<>"",C41+hh/2,"") ->  | E42: =IF(B42="","",4) -> 
B43: =IF(B42<(2*n), B42+1,"") ->  | C43: =IF(B43<>"",C42+hh/2,"") ->  | E43: =IF(B44="",IF(B43="","",1),2) -> 
B44: =IF(B43<(2*n), B43+1,"") ->  | C44: =IF(B44<>"",C43+hh/2,"") ->  | E44: =IF(B44="","",4) -> 
B45: =IF(B44<(2*n), B44+1,"") ->  | C45: =IF(B45<>"",C44+hh/2,"") ->  | E45: =IF(B46="",IF(B45="","",1),2) -> 
B46: =IF(B45<(2*n), B45+1,"") ->  | C46: =IF(B46<>"",C45+hh/2,"") ->  | E46: =IF(B46="","",4) -> 
B47: =IF(B46<(2*n), B46+1,"") ->  | C47: =IF(B47<>"",C46+hh/2,"") ->  | E47: =IF(B48="",IF(B47="","",1),2) -> 
B48: =IF(B47<(2*n), B47+1,"") ->  | C48: =IF(B48<>"",C47+hh/2,"") ->  | E48: =IF(B48="","",4) -> 
B49: =IF(B48<(2*n), B48+1,"") ->  | C49: =IF(B49<>"",C48+hh/2,"") ->  | E49: =IF(B50="",IF(B49="","",1),2) -> 
B50: =IF(B49<(2*n), B49+1,"") ->  | C50: =IF(B50<>"",C49+hh/2,"") ->  | E50: =IF(B50="","",4) -> 
B51: =IF(B50<(2*n), B50+1,"") ->  | C51: =IF(B51<>"",C50+hh/2,"") ->  | E51: =IF(B52="",IF(B51="","",1),2) -> 
B52: =IF(B51<(2*n), B51+1,"") ->  | C52: =IF(B52<>"",C51+hh/2,"") ->  | E52: =IF(B52="","",4) -> 
B53: =IF(B52<(2*n), B52+1,"") ->  | C53: =IF(B53<>"",C52+hh/2,"") ->  | E53: =IF(B54="",IF(B53="","",1),2) -> 
B54: =IF(B53<(2*n), B53+1,"") ->  | C54: =IF(B54<>"",C53+hh/2,"") ->  | E54: =IF(B54="","",4) -> 
B55: =IF(B54<(2*n), B54+1,"") ->  | C55: =IF(B55<>"",C54+hh/2,"") ->  | E55: =IF(B56="",IF(B55="","",1),2) -> 
B56: =IF(B55<(2*n), B55+1,"") ->  | C56: =IF(B56<>"",C55+hh/2,"") ->  | E56: =IF(B56="","",4) -> 
B57: =IF(B56<(2*n), B56+1,"") ->  | C57: =IF(B57<>"",C56+hh/2,"") ->  | E57: =IF(B58="",IF(B57="","",1),2) -> 
B58: =IF(B57<(2*n), B57+1,"") ->  | C58: =IF(B58<>"",C57+hh/2,"") ->  | E58: =IF(B58="","",4) -> 
B59: =IF(B58<(2*n), B58+1,"") ->  | C59: =IF(B59<>"",C58+hh/2,"") ->  | E59: =IF(B60="",IF(B59="","",1),2) -> 
B60: =IF(B59<(2*n), B59+1,"") ->  | C60: =IF(B60<>"",C59+hh/2,"") ->  | E60: =IF(B60="","",4) -> 
B61: =IF(B60<(2*n), B60+1,"") ->  | C61: =IF(B61<>"",C60+hh/2,"") ->  | E61: =IF(B62="",IF(B61="","",1),2) -> 
B62: =IF(B61<(2*n), B61+1,"") ->  | C62: =IF(B62<>"",C61+hh/2,"") ->  | E62: =IF(B62="","",4) -> 
B63: =IF(B62<(2*n), B62+1,"") ->  | C63: =IF(B63<>"",C62+hh/2,"") ->  | E63: =IF(B64="",IF(B63="","",1),2) -> 
B64: =IF(B63<(2*n), B63+1,"") ->  | C64: =IF(B64<>"",C63+hh/2,"") ->  | E64: =IF(B64="","",4) -> 
B65: =IF(B64<(2*n), B64+1,"") ->  | C65: =IF(B65<>"",C64+hh/2,"") ->  | E65: =IF(B66="",IF(B65="","",1),2) -> 
B66: =IF(B65<(2*n), B65+1,"") ->  | C66: =IF(B66<>"",C65+hh/2,"") ->  | E66: =IF(B66="","",4) -> 
B67: =IF(B66<(2*n), B66+1,"") ->  | C67: =IF(B67<>"",C66+hh/2,"") ->  | E67: =IF(B68="",IF(B67="","",1),2) -> 
B68: =IF(B67<(2*n), B67+1,"") ->  | C68: =IF(B68<>"",C67+hh/2,"") ->  | E68: =IF(B68="","",4) -> 
B69: =IF(B68<(2*n), B68+1,"") ->  | C69: =IF(B69<>"",C68+hh/2,"") ->  | E69: =IF(B70="",IF(B69="","",1),2) -> 
B70: =IF(B69<(2*n), B69+1,"") ->  | C70: =IF(B70<>"",C69+hh/2,"") ->  | E70: =IF(B70="","",4) -> 
B71: =IF(B70<(2*n), B70+1,"") ->  | C71: =IF(B71<>"",C70+hh/2,"") ->  | E71: =IF(B72="",IF(B71="","",1),2) -> 
B72: =IF(B71<(2*n), B71+1,"") ->  | C72: =IF(B72<>"",C71+hh/2,"") ->  | E72: =IF(B72="","",4) -> 
B73: =IF(B72<(2*n), B72+1,"") ->  | C73: =IF(B73<>"",C72+hh/2,"") ->  | E73: =IF(B74="",IF(B73="","",1),2) -> 
B74: =IF(B73<(2*n), B73+1,"") ->  | C74: =IF(B74<>"",C73+hh/2,"") ->  | E74: =IF(B74="","",4) -> 
B75: =IF(B74<(2*n), B74+1,"") ->  | C75: =IF(B75<>"",C74+hh/2,"") ->  | E75: =IF(B76="",IF(B75="","",1),2) -> 
B76: =IF(B75<(2*n), B75+1,"") ->  | C76: =IF(B76<>"",C75+hh/2,"") ->  | E76: =IF(B76="","",4) -> 
B77: =IF(B76<(2*n), B76+1,"") ->  | C77: =IF(B77<>"",C76+hh/2,"") ->  | E77: =IF(B78="",IF(B77="","",1),2) -> 
B78: =IF(B77<(2*n), B77+1,"") ->  | C78: =IF(B78<>"",C77+hh/2,"") ->  | E78: =IF(B78="","",4) -> 
B79: =IF(B78<(2*n), B78+1,"") ->  | C79: =IF(B79<>"",C78+hh/2,"") ->  | E79: =IF(B80="",IF(B79="","",1),2) -> 
B80: =IF(B79<(2*n), B79+1,"") ->  | C80: =IF(B80<>"",C79+hh/2,"") ->  | E80: =IF(B80="","",4) -> 
B81: =IF(B80<(2*n), B80+1,"") ->  | C81: =IF(B81<>"",C80+hh/2,"") ->  | E81: =IF(B82="",IF(B81="","",1),2) -> 
B82: =IF(B81<(2*n), B81+1,"") ->  | C82: =IF(B82<>"",C81+hh/2,"") ->  | E82: =IF(B82="","",4) -> 
B83: =IF(B82<(2*n), B82+1,"") ->  | C83: =IF(B83<>"",C82+hh/2,"") ->  | E83: =IF(B84="",IF(B83="","",1),2) -> 
B84: =IF(B83<(2*n), B83+1,"") ->  | C84: =IF(B84<>"",C83+hh/2,"") ->  | E84: =IF(B84="","",4) -> 
B85: =IF(B84<(2*n), B84+1,"") ->  | C85: =IF(B85<>"",C84+hh/2,"") ->  | D85: =IF(B85<>"",f(C85),"") ->  | E85: =IF(B86="",IF(B85="","",1),2) -> 
B86: =IF(B85<(2*n), B85+1,"") ->  | C86: =IF(B86<>"",C85+hh/2,"") ->  | E86: =IF(B86="","",4) -> 
B87: =IF(B86<(2*n), B86+1,"") ->  | C87: =IF(B87<>"",C86+hh/2,"") ->  | E87: =IF(B88="",IF(B87="","",1),2) -> 
B88: =IF(B87<(2*n), B87+1,"") ->  | C88: =IF(B88<>"",C87+hh/2,"") ->  | E88: =IF(B88="","",4) -> 
B89: =IF(B88<(2*n), B88+1,"") ->  | C89: =IF(B89<>"",C88+hh/2,"") ->  | E89: =IF(B90="",IF(B89="","",1),2) ->  | F89: =IF(D89="","",E89*D89) -> 
B90: =IF(B89<(2*n), B89+1,"") ->  | C90: =IF(B90<>"",C89+hh/2,"") ->  | E90: =IF(B90="","",4) -> 
B91: =IF(B90<(2*n), B90+1,"") ->  | C91: =IF(B91<>"",C90+hh/2,"") ->  | E91: =IF(B92="",IF(B91="","",1),2) -> 
B92: =IF(B91<(2*n), B91+1,"") ->  | C92: =IF(B92<>"",C91+hh/2,"") ->  | E92: =IF(B92="","",4) -> 
B93: =IF(B92<(2*n), B92+1,"") ->  | C93: =IF(B93<>"",C92+hh/2,"") ->  | E93: =IF(B94="",IF(B93="","",1),2) -> 
B94: =IF(B93<(2*n), B93+1,"") ->  | C94: =IF(B94<>"",C93+hh/2,"") ->  | E94: =IF(B94="","",4) -> 
B95: =IF(B94<(2*n), B94+1,"") ->  | C95: =IF(B95<>"",C94+hh/2,"") ->  | E95: =IF(B96="",IF(B95="","",1),2) -> 
B96: =IF(B95<(2*n), B95+1,"") ->  | C96: =IF(B96<>"",C95+hh/2,"") ->  | E96: =IF(B96="","",4) -> 
B97: =IF(B96<(2*n), B96+1,"") ->  | C97: =IF(B97<>"",C96+hh/2,"") ->  | E97: =IF(B98="",IF(B97="","",1),2) -> 
B98: =IF(B97<(2*n), B97+1,"") ->  | C98: =IF(B98<>"",C97+hh/2,"") ->  | E98: =IF(B98="","",4) -> 
B99: =IF(B98<(2*n), B98+1,"") ->  | C99: =IF(B99<>"",C98+hh/2,"") ->  | E99: =IF(B100="",IF(B99="","",1),2) -> 
B100: =IF(B99<(2*n), B99+1,"") ->  | C100: =IF(B100<>"",C99+hh/2,"") ->  | E100: =IF(B100="","",4) -> 
B101: =IF(B100<(2*n), B100+1,"") ->  | C101: =IF(B101<>"",C100+hh/2,"") ->  | E101: =IF(B102="",IF(B101="","",1),2) -> 
B102: =IF(B101<(2*n), B101+1,"") ->  | C102: =IF(B102<>"",C101+hh/2,"") ->  | E102: =IF(B102="","",4) -> 
B103: =IF(B102<(2*n), B102+1,"") ->  | C103: =IF(B103<>"",C102+hh/2,"") ->  | E103: =IF(B104="",IF(B103="","",1),2) -> 
B104: =IF(B103<(2*n), B103+1,"") ->  | C104: =IF(B104<>"",C103+hh/2,"") ->  | E104: =IF(B104="","",4) -> 
B105: =IF(B104<(2*n), B104+1,"") ->  | C105: =IF(B105<>"",C104+hh/2,"") ->  | E105: =IF(B106="",IF(B105="","",1),2) -> 
B106: =IF(B105<(2*n), B105+1,"") ->  | C106: =IF(B106<>"",C105+hh/2,"") ->  | E106: =IF(B106="","",4) -> 
B107: =IF(B106<(2*n), B106+1,"") ->  | C107: =IF(B107<>"",C106+hh/2,"") ->  | E107: =IF(B108="",IF(B107="","",1),2) -> 
B108: =IF(B107<(2*n), B107+1,"") ->  | C108: =IF(B108<>"",C107+hh/2,"") ->  | E108: =IF(B108="","",4) -> 
B109: =IF(B108<(2*n), B108+1,"") ->  | C109: =IF(B109<>"",C108+hh/2,"") ->  | E109: =IF(B110="",IF(B109="","",1),2) -> 
B110: =IF(B109<(2*n), B109+1,"") ->  | C110: =IF(B110<>"",C109+hh/2,"") ->  | E110: =IF(B110="","",4) -> 
B111: =IF(B110<(2*n), B110+1,"") ->  | C111: =IF(B111<>"",C110+hh/2,"") ->  | E111: =IF(B112="",IF(B111="","",1),2) -> 
B112: =IF(B111<(2*n), B111+1,"") ->  | C112: =IF(B112<>"",C111+hh/2,"") ->  | E112: =IF(B112="","",4) -> 
B113: =IF(B112<(2*n+1), B112+1,"") ->  | C113: =IF(B113<>"",C112+hh/2,"") ->  | E113: =IF(B114="",IF(B113="","",1),2) -> 
B114: =IF(B113<n, B113+1,"") ->  | C114: =IF(B114<>"",C113+hh/2,"") ->  | E114: =IF(B114="","",4) -> 
C115: =IF(B115<>"",C114+hh/2,"") ->  | E115: =IF(B116="",IF(B115="","",1),2) -> 
C116: =IF(B116<>"",C115+hh/2,"") ->  | E116: =IF(B116="","",4) -> 
B117: =IF(B116<n, B116+1,"") ->  | C117: =IF(B117<>"",C116+hh/2,"") -> 
C118: =IF(B118<>"",C117+hh/2,"") -> 
C119: =IF(B119<>"",C118+hh/2,"") -> 
C120: =IF(B120<>"",C119+hh/2,"") -> 
C121: =IF(B121<>"",C120+hh/2,"") -> 
C122: =IF(B122<>"",C121+hh,"") -> 

Sheet Sheet2

Sheet Sheet3
